bitfinex-derivatives/quotes_BNBF0:USTF0_20250413
["timestamp","ask_amount","ask_price","bid_price","bid_amount"]
[1744563112534,0.29757069,585.47,584.52,2.769]
[1744563112739,0.29634537,585.46,584.52,2.769]
[1744563114436,0.29634537,585.48,584.52,2.769]
[1744563114639,0.29634537,585.45,584.52,2.769]
[1744563114841,0.29634537,585.44,584.52,2.769]
[1744563115142,0.29634537,585.43,584.52,2.769]
[1744563115337,0.29634537,585.48,584.52,2.769]
[1744563115536,0.261,585.49,584.52,2.769]
[1744563115537,0.29634537,585.42,584.52,2.769]
[1744563115737,0.29634537,585.41,584.52,2.769]
[1744563115940,0.29634537,585.45,584.52,2.769]
[1744563116240,0.29757069,585.46,584.52,2.769]
[1744563116241,0.29634537,585.44,584.52,2.769]
[1744563116440,0.29634537,585.45,584.52,2.769]
[1744563116640,0.29634537,585.44,584.52,2.769]
[1744563116838,0.29634537,585.45,584.52,2.769]
[1744563117039,0.29634537,585.44,584.52,2.769]
[1744563117240,0.29634537,585.45,584.52,2.769]
[1744563117540,0.29634537,585.44,584.52,2.769]
[1744563117843,0.29757069,585.46,584.52,2.769]
[1744563118044,0.29638923,585.45,584.52,2.769]
[1744563119547,0.29757069,585.46,584.52,2.769]
[1744563119845,0.29638267,585.45,584.52,2.769]
[1744563120649,0.29638267,585.48,584.52,2.769]
[1744563120950,0.29638267,585.47,584.52,2.769]
[1744563121148,0.29638267,585.48,584.52,2.769]
[1744563121649,0.29757069,585.47,584.52,2.769]
[1744563121947,0.29638267,585.46,584.52,2.769]
[1744563122546,0.29638267,585.48,584.52,2.769]
[1744563122745,0.29638267,585.47,584.52,2.769]
[1744563122946,0.29638267,585.48,584.52,2.769]
[1744563123248,0.29638267,585.47,584.52,2.769]
[1744563123445,0.29638267,585.48,584.52,2.769]
[1744563123649,0.29638267,585.47,584.52,2.769]
[1744563123851,0.29638267,585.48,584.52,2.769]
[1744563124049,0.29633944,585.47,584.52,2.769]
[1744563124248,0.29633944,585.48,584.52,2.769]
[1744563125553,0.261,585.49,584.52,2.769]
[1744563125754,0.29633898,585.48,584.52,2.769]
[1744563128751,0.261,585.49,584.52,2.769]
[1744563128957,0.29633658,585.48,584.52,2.769]
[1744563129458,0.29633658,585.5,584.52,2.769]
[1744563129653,0.29633658,585.49,584.52,2.769]
[1744563129857,0.29633658,585.5,584.52,2.769]
[1744563130058,0.29633658,585.49,584.52,2.769]
[1744563130259,0.29633658,585.5,584.52,2.769]
[1744563130461,0.29633658,585.49,584.52,2.769]
[1744563130661,0.29633658,585.5,584.52,2.769]
[1744563131565,0.29633658,585.5,584.53,0.31426235]
[1744563132163,0.261,585.49,584.53,0.31426235]
[1744563132464,0.29633658,585.48,584.52,0.436]
[1744563132762,0.29633658,585.48,584.53,0.31426219]
[1744563133065,0.29633658,585.48,584.52,0.436]
[1744563133665,0.29633658,585.48,584.53,0.31426038]
[1744563134265,0.29633658,585.48,584.53,0.893]
[1744563134565,0.29633658,585.48,584.53,1.429]
[1744563135366,0.261,585.49,584.53,1.429]
[1744563135666,0.29632976,585.48,584.53,1.862]
[1744563138762,0.29632854,585.47,584.53,1.862]
[1744563138962,0.29632854,585.48,584.53,1.862]
[1744563139164,0.29632854,585.47,584.53,1.862]
[1744563139365,0.29632854,585.48,584.53,1.862]
[1744563139564,0.29632854,585.47,584.53,1.862]
[1744563139764,0.29632854,585.48,584.53,1.862]
[1744563139966,0.29632854,585.47,584.53,1.862]
[1744563140165,0.29632854,585.48,584.53,1.862]
[1744563140367,0.261,585.49,584.53,1.862]
[1744563140566,0.29633044,585.48,584.53,1.862]
[1744563143563,0.261,585.49,584.53,1.862]
[1744563143767,0.29633067,585.48,584.53,1.862]
[1744563145270,0.261,585.49,584.53,1.862]
[1744563145467,0.29633039,585.48,584.53,1.862]
[1744563146868,0.261,585.49,584.53,1.862]
[1744563147068,0.29633227,585.48,584.53,1.862]
[1744563152571,0.29633227,585.47,584.53,1.862]
[1744563152771,0.29633227,585.5,584.53,1.862]
[1744563153473,1.30550286,585.78,584.53,1.862]
[1744563153675,1.30550286,585.77,584.53,1.862]
[1744563154575,0.29750201,585.6,584.53,1.862]
[1744563154971,0.261,585.5,584.53,1.862]
[1744563158575,0.29631595,585.49,584.53,1.862]
[1744563159775,0.29631595,585.49,584.54,0.31423977]
[1744563162678,0.29631595,585.49,584.54,0.78623977]
[1744563162878,0.29631595,585.49,584.54,0.472]
[1744563163277,0.29631595,585.49,584.54,1.119]
[1744563163780,0.29631595,585.49,584.54,1.612]
[1744563164178,0.29631595,585.49,584.55,0.31424571]
[1744563165881,0.29631595,585.49,584.55,0.76724571]
[1744563166080,0.29631595,585.49,584.55,0.453]
[1744563166480,0.29631595,585.5,584.55,0.453]
[1744563166678,0.29632166,585.49,584.55,0.453]
[1744563166881,0.29753508,585.59,584.55,0.453]
[1744563166882,0.29632166,585.48,584.55,0.453]
[1744563167087,0.29632166,585.5,584.55,0.453]
[1744563167287,0.29632166,585.49,584.55,0.453]
[1744563167487,0.29632166,585.5,584.56,0.31424501]
[1744563167684,0.29632166,585.49,584.56,0.31424501]
[1744563167885,0.29632166,585.48,584.55,0.453]
[1744563168090,0.29632166,585.5,584.55,0.453]
[1744563168291,0.29633411,585.49,584.55,0.453]
[1744563168488,0.29633411,585.48,584.55,0.453]
[1744563168788,0.29633411,585.47,584.55,0.453]
[1744563169088,0.29633411,585.46,584.55,0.453]
[1744563169289,0.261,585.46,584.55,0.453]
[1744563169589,0.29633411,585.45,584.55,0.453]
[1744563171389,0.261,585.46,584.55,0.453]
[1744563171590,0.2963255,585.45,584.55,0.453]
[1744563172992,0.261,585.46,584.55,0.453]
[1744563173193,0.29632477,585.45,584.55,0.453]
[1744563176197,0.261,585.46,584.55,0.453]
[1744563176397,0.29632521,585.45,584.55,0.453]
[1744563179399,0.261,585.46,584.55,0.453]
[1744563179599,0.2963208,585.45,584.55,0.453]
[1744563180900,0.29632067,585.44,584.55,0.453]
[1744563181101,0.29632067,585.45,584.55,0.453]
[1744563181302,0.29632067,585.44,584.55,0.453]
[1744563181501,0.29632067,585.43,584.55,0.453]
[1744563181802,0.29632067,585.42,584.55,0.453]
[1744563182103,0.29632067,585.45,584.55,0.453]
[1744563182402,0.29632067,585.44,584.55,0.453]
[1744563182702,0.29632067,585.45,584.55,0.453]
[1744563182902,0.29632067,585.44,584.55,0.453]
[1744563183099,0.29632067,585.43,584.55,0.453]
[1744563183299,0.29632067,585.45,584.55,0.453]
[1744563183500,0.29632067,585.44,584.55,0.453]
[1744563183705,0.261,585.46,584.55,0.453]
[1744563183899,0.29632621,585.45,584.55,0.453]
[1744563186408,0.29632621,585.45,584.55,0.939]
[1744563186909,0.261,585.46,584.55,0.939]
[1744563187109,0.29632071,585.45,584.55,0.939]
[1744563190114,0.261,585.46,584.55,0.939]
[1744563190313,0.29631966,585.45,584.55,0.939]
[1744563191813,0.29631966,585.45,584.55,1.445]
[1744563193617,0.29631966,585.44,584.55,1.445]
[1744563193816,0.29631966,585.5,584.55,1.445]
[1744563194017,0.29631966,585.49,584.55,1.445]
[1744563194214,0.29631966,585.5,584.55,1.445]
[1744563194918,1.60303666,585.59,584.55,1.445]
[1744563195119,0.29632295,585.5,584.55,1.445]
[1744563195615,0.29632295,585.5,584.55,2.032]
[1744563196021,0.261,585.49,584.55,2.032]
[1744563196219,0.29632295,585.48,584.55,2.032]
[1744563198121,0.261,585.49,584.55,2.032]
[1744563198314,0.29632294,585.48,584.55,2.032]
[1744563198621,0.261,585.49,584.55,2.509]
[1744563202424,0.29637007,585.48,584.55,2.509]
[1744563203123,0.261,585.49,584.55,2.509]
[1744563203325,0.29637036,585.47,584.55,2.509]
[1744563203524,0.29637036,585.46,584.55,2.509]
[1744563203826,0.29637036,585.45,584.55,2.509]
[1744563204024,0.29637036,585.48,584.55,2.509]
[1744563204228,0.29637036,585.47,584.55,2.509]
[1744563204425,0.29637036,585.48,584.55,2.509]
[1744563204726,0.29637036,585.47,584.55,2.509]
[1744563204926,0.29637036,585.48,584.55,2.509]
[1744563205125,0.29637036,585.47,584.55,2.509]
[1744563205321,0.29637036,585.48,584.55,2.509]
[1744563205522,0.29637036,585.47,584.55,2.509]
[1744563205725,0.29637036,585.48,584.55,2.509]
[1744563205921,0.29637036,585.47,584.55,2.509]
[1744563206222,0.261,585.49,584.55,2.509]
[1744563206426,0.2963659,585.48,584.55,2.509]
[1744563207729,0.261,585.49,584.55,2.509]
[1744563207927,0.29637025,585.48,584.55,2.509]
[1744563209330,0.29637025,585.5,584.55,2.509]
[1744563210832,0.29754907,585.53,584.55,2.509]
[1744563211032,0.29636689,585.5,584.55,2.509]
[1744563212530,0.261,585.49,584.55,2.509]
[1744563212733,0.29636689,585.48,584.55,2.509]
[1744563214033,0.29636983,585.47,584.55,2.509]
[1744563214237,0.29636983,585.48,584.55,2.509]
[1744563214437,0.29636983,585.47,584.55,2.509]
[1744563214740,0.29636983,585.46,584.55,2.509]
[1744563214933,0.29636983,585.48,584.55,2.509]
[1744563215442,0.261,585.49,584.55,2.509]
[1744563215640,0.29637052,585.48,584.55,2.509]
[1744563220043,0.261,585.49,584.55,2.509]
[1744563220344,0.29637063,585.48,584.55,2.509]
[1744563221641,0.261,585.49,584.55,2.509]
[1744563221846,0.29636727,585.48,584.55,2.509]
[1744563224648,0.261,585.49,584.55,2.509]
[1744563225050,0.261,585.49,584.56,0.34213767]
[1744563228051,0.29630413,585.48,584.57,0.31422987]
[1744563228243,0.29630413,585.48,584.58,0.34212597]
[1744563228449,0.29630413,585.48,584.58,0.75912597]
[1744563228747,0.29630413,585.48,584.59,0.444]
[1744563229050,0.29630413,585.48,584.6,0.34211426]
[1744563230545,0.29630413,585.48,584.61,0.3142232]
[1744563230852,0.29630413,585.48,584.6,0.16133746]
[1744563232352,0.261,585.49,584.6,0.16133746]
[1744563232551,0.31130624,585.48,584.61,0.31420861]
[1744563232847,0.31130624,585.48,584.62,0.34210256]
[1744563233653,0.31130624,585.48,584.62,0.00010256]
[1744563235451,0.261,585.49,584.62,0.00010256]
[1744563235653,0.31130633,585.48,584.62,0.00010256]
[1744563236651,0.261,585.49,584.62,0.00010256]
[1744563237150,0.31130402,585.48,584.62,0.00010256]
[1744563238351,0.31130402,585.48,584.63,0.564]
[1744563238655,0.31128827,585.47,584.64,0.34209085]
[1744563238855,0.31128827,585.46,584.64,0.34209085]
[1744563239056,0.31128827,585.45,584.64,0.34209085]
[1744563239355,0.31128827,585.48,584.64,0.34209085]
[1744563239555,0.31128827,585.44,584.64,0.34209085]
[1744563239759,0.29745369,585.79,584.64,0.34209085]
[1744563239954,0.31128926,585.78,584.64,0.34209085]
[1744563240552,0.31128926,585.94,584.64,0.34209085]
[1744563240752,0.29741683,585.79,584.64,0.34209085]
[1744563240958,0.31128926,585.78,584.64,0.34209085]
[1744563241256,0.31128926,585.77,584.64,0.34209085]
[1744563241453,0.31128926,585.76,584.64,0.34209085]
[1744563241651,0.31128926,585.75,584.64,0.34209085]
[1744563241851,0.31128926,585.74,584.64,0.34209085]
[1744563244358,0.261,585.75,584.64,0.34209085]
[1744563244563,0.31129024,585.74,584.64,0.34209085]
[1744563245460,0.31129024,585.74,584.65,0.769]
[1744563245759,0.31129024,585.74,584.66,0.34207915]
[1744563245960,0.55842446,585.75,584.66,0.34207915]
[1744563246161,0.31128669,585.74,584.66,0.34207915]
[1744563248265,0.31128669,585.74,584.66,0.73507915]
[1744563248566,0.55844988,585.75,584.66,0.73507915]
[1744563249365,0.261,585.75,584.66,0.73507915]
[1744563252766,0.55832408,585.75,584.66,0.73507915]
[1744563255368,0.261,585.75,584.66,0.73507915]
[1744563255769,0.55832662,585.75,584.66,0.73507915]
[1744563257369,0.31129168,585.74,584.66,0.73507915]
[1744563260368,0.55833297,585.75,584.66,0.73507915]
[1744563260571,0.31129169,585.74,584.66,0.73507915]
[1744563260770,0.31129169,585.74,584.66,1.30207915]
[1744563261170,0.31129169,585.74,584.66,1.87307915]
[1744563263174,1.61679455,585.74,584.66,1.87307915]
[1744563263372,0.31129169,585.73,584.66,1.87307915]
[1744563263672,0.31127365,585.72,584.66,1.87307915]
[1744563263870,0.31127365,585.73,584.66,1.87307915]
[1744563265968,0.261,585.75,584.66,1.87307915]
[1744563265969,0.31127365,585.72,584.66,1.87307915]
[1744563266175,0.31127365,585.74,584.66,1.87307915]
[1744563266367,0.31127365,585.73,584.66,1.87307915]
[1744563266569,0.31127365,585.72,584.66,1.87307915]
[1744563266769,0.31127365,585.74,584.66,1.87307915]
[1744563266970,0.31127365,585.73,584.66,1.87307915]
[1744563267174,0.31127365,585.74,584.66,1.87307915]
[1744563267474,0.31127365,585.73,584.66,1.87307915]
[1744563267673,0.31127365,585.72,584.66,1.87307915]
[1744563267872,0.31127365,585.74,584.66,1.87307915]
[1744563268073,0.31127365,585.73,584.66,1.87307915]
[1744563268270,0.31127365,585.72,584.66,1.87307915]
[1744563268471,0.31127365,585.74,584.66,1.87307915]
[1744563268669,0.31127365,585.73,584.66,1.87307915]
[1744563268974,0.31127365,585.72,584.66,1.87307915]
[1744563269176,0.31127365,585.71,584.66,1.87307915]
[1744563269372,0.31127365,585.74,584.66,1.87307915]
[1744563269575,0.31127365,585.73,584.66,1.87307915]
[1744563269775,0.31127365,585.74,584.66,1.87307915]
[1744563271177,0.31127365,585.9,584.66,1.87307915]
[1744563271477,0.31127365,585.89,584.66,1.87307915]
[1744563271673,0.29742319,585.89,584.66,1.87307915]
[1744563271877,0.31127365,585.88,584.66,1.87307915]
[1744563272778,0.31127365,585.87,584.66,1.87307915]
[1744563273078,1.30550286,585.84,584.66,1.87307915]
[1744563273380,0.31127365,585.83,584.66,1.87307915]
[1744563273680,0.60871082,585.83,584.66,1.87307915]
[1744563273875,0.31127365,585.82,584.66,1.87307915]
[1744563274682,0.31127365,585.81,584.66,1.87307915]
[1744563274882,0.31127365,585.82,584.66,1.87307915]
[1744563275082,0.31127365,585.81,584.66,1.87307915]
[1744563275283,1.61677651,585.82,584.66,2.33407915]
[1744563275483,0.31127365,585.81,584.66,2.33407915]
[1744563276682,0.29745497,585.8,584.66,2.33407915]
[1744563276887,0.31127365,585.79,584.66,2.33407915]
[1744563279683,0.31127365,585.78,584.66,2.33407915]
[1744563279888,0.31127365,585.77,584.66,2.33407915]
[1744563280084,0.31127365,585.76,584.66,2.33407915]
[1744563280289,0.31127365,585.75,584.66,2.33407915]
[1744563280591,0.31127365,585.74,584.66,2.33407915]
[1744563280789,0.31127365,585.77,584.66,2.33407915]
[1744563281089,0.29745751,585.78,584.66,2.33407915]
[1744563281289,0.31131694,585.77,584.66,2.33407915]
[1744563282290,0.31131694,585.77,584.66,2.95607915]
[1744563282689,0.31131694,585.78,584.66,2.95607915]
[1744563282890,0.31131694,585.77,584.66,2.95607915]
[1744563283085,0.31131694,585.76,584.66,2.95607915]
[1744563283284,0.31131694,585.75,584.66,2.95607915]
[1744563283487,0.31131694,585.74,584.66,2.95607915]
[1744563283696,0.29745878,585.75,584.66,2.95607915]
[1744563283893,0.31131694,585.74,584.66,2.95607915]
[1744563284193,0.29745878,585.75,584.66,2.95607915]
[1744563284391,0.31131678,585.74,584.66,2.95607915]
[1744563284592,1.61681964,585.74,584.66,2.95607915]
[1744563284793,0.31131678,585.73,584.66,2.95607915]
[1744563287595,0.31131678,585.72,584.66,2.95607915]
[1744563287797,0.31131678,585.71,584.66,2.95607915]
[1744563288000,0.31131678,585.74,584.66,2.95607915]
[1744563288200,0.31131678,585.73,584.66,2.95607915]
[1744563288401,0.31131678,585.74,584.66,2.95607915]
[1744563288600,0.31131678,585.73,584.66,2.95607915]
[1744563288802,0.29746386,585.72,584.66,2.95607915]
[1744563289002,0.31131491,585.71,584.66,2.95607915]
[1744563290504,0.29746386,585.72,584.66,2.95607915]
[1744563290698,0.31128864,585.71,584.66,2.95607915]
[1744563291604,0.31128864,585.7,584.66,2.95607915]
[1744563291899,0.31128864,585.69,584.66,2.95607915]
[1744563292104,0.29745751,585.73,584.66,2.95607915]
[1744563292399,0.31128913,585.72,584.66,2.95607915]
[1744563292702,0.261,585.71,584.66,2.95607915]
[1744563292903,0.31128913,585.7,584.66,2.95607915]
[1744563293702,0.261,585.71,584.66,2.95607915]
[1744563293901,0.31129456,585.7,584.66,2.95607915]
[1744563305711,0.29743208,585.73,584.66,2.95607915]
[1744563305911,0.31129515,585.72,584.66,2.95607915]
[1744563306611,1.30550286,585.94,584.66,2.95607915]
[1744563306612,0.31129515,585.93,584.66,2.95607915]
[1744563306913,0.29745115,585.75,584.66,2.95607915]
[1744563307107,0.31129515,585.74,584.66,2.95607915]
[1744563307311,0.31129515,585.91,584.66,2.95607915]
[1744563307510,0.31129515,585.9,584.66,2.95607915]
[1744563307706,0.31129515,585.89,584.66,2.95607915]
[1744563307907,0.31129515,585.88,584.66,2.95607915]
[1744563308110,0.31129515,585.87,584.66,2.95607915]
[1744563308314,1.30550286,585.72,584.66,2.95607915]
[1744563308512,0.31129515,585.71,584.66,2.95607915]
[1744563308812,1.30550286,585.72,584.66,2.95607915]
[1744563309013,0.31129445,585.71,584.66,2.95607915]
[1744563309615,0.261,585.7,584.66,2.95607915]
[1744563309907,0.31129445,585.69,584.66,2.95607915]
[1744563311914,0.261,585.7,584.66,2.95607915]
[1744563312108,0.3113065,585.69,584.66,2.95607915]
[1744563313514,0.261,585.7,584.66,2.95607915]
[1744563313819,0.29745878,585.68,584.66,2.95607915]
[1744563314020,0.31130283,585.67,584.66,2.95607915]
[1744563315921,0.29745878,585.68,584.66,2.95607915]
[1744563316119,0.31128154,585.67,584.66,2.95607915]
[1744563316821,0.31128154,585.67,584.67,0.31417704]
[1744563317021,0.31128154,585.67,584.68,0.34206745]
[1744563317322,0.31128154,585.66,584.68,0.34206745]
[1744563317516,0.31128154,585.69,584.68,0.34206745]
[1744563317716,0.31128154,585.68,584.68,0.34206745]
[1744563317914,0.31128154,585.67,584.68,0.34206745]
[1744563318118,0.31128154,585.66,584.68,0.34206745]
[1744563318423,0.31128154,585.65,584.68,0.34206745]
[1744563318620,0.31128154,585.69,584.68,0.34206745]
[1744563318818,0.31128154,585.68,584.68,0.34206745]
[1744563319021,0.31128154,585.69,584.68,0.34206745]
[1744563319323,0.31128154,585.68,584.68,0.34206745]
[1744563319521,0.31128154,585.67,584.68,0.34206745]
[1744563319720,0.261,585.7,584.68,0.34206745]
[1744563319921,0.31125799,585.69,584.68,0.80006745]
[1744563320125,0.31125799,585.69,584.69,0.31412965]
[1744563320628,0.31125799,585.69,584.7,0.34205575]
[1744563320824,0.31125799,585.69,584.71,0.31412965]
[1744563321025,0.31125799,585.69,584.72,0.34204405]
[1744563321325,0.31125799,585.69,584.72,1.00304405]
[1744563322828,0.261,585.7,584.72,1.00304405]
[1744563323027,0.31122698,585.69,584.72,1.00304405]
[1744563325228,0.31122698,585.69,584.73,0.314121]
[1744563325428,0.31122698,585.69,584.74,0.34203235]
[1744563325629,0.31122698,585.69,584.75,0.314121]
[1744563325829,0.31122698,585.69,584.76,0.34202065]
[1744563326030,0.31121738,585.68,584.77,0.31411962]
[1744563326328,0.31121738,585.67,584.78,0.34200896]
[1744563326529,0.31121738,585.69,584.78,0.34200896]
[1744563326830,0.31121738,585.68,584.78,0.34200896]
[1744563327028,0.31121738,585.69,584.78,0.34200896]
[1744563329035,0.261,585.7,584.78,0.34200896]
[1744563329233,0.31122867,585.69,584.78,0.34200896]
[1744563330630,0.261,585.7,584.78,0.34200896]
[1744563330834,0.31122881,585.69,584.78,0.34200896]
[1744563331837,0.31122881,585.87,584.78,0.34200896]
[1744563332135,0.29737871,585.88,584.78,0.34200896]
[1744563332337,0.31122969,585.87,584.78,0.34200896]
[1744563333730,0.29738379,585.88,584.78,0.34200896]
[1744563334035,0.3112287,585.87,584.78,0.34200896]
[1744563334637,0.261,585.86,584.78,0.34200896]
[1744563334836,0.3112287,585.85,584.78,0.34200896]
[1744563335237,0.261,585.86,584.78,0.34200896]
[1744563335537,0.3112311,585.85,584.78,0.34200896]
[1744563336438,0.3112311,585.85,584.78,0.99400896]
[1744563336739,0.29739904,585.84,584.78,0.99400896]
[1744563336939,0.31123402,585.83,584.78,0.99400896]
[1744563338435,0.31123136,585.82,584.78,0.99400896]
[1744563338640,0.31123136,585.83,584.78,0.99400896]
[1744563338842,0.31123136,585.82,584.78,0.99400896]
[1744563339137,0.31123136,585.81,584.78,1.63700896]
[1744563339344,0.31123136,585.83,584.78,1.63700896]
[1744563339541,0.31123136,585.82,584.78,1.63700896]
[1744563339841,0.31123136,585.81,584.78,1.63700896]
[1744563340043,0.31122917,585.8,584.78,1.63700896]
[1744563340242,0.31122917,585.81,584.78,2.39300896]
[1744563340538,0.31122917,585.8,584.78,3.05400896]
[1744563340742,0.31122917,585.79,584.78,3.05400896]
[1744563340944,0.31122917,585.78,584.78,3.05400896]
[1744563341138,0.31122917,585.81,584.78,3.05400896]
[1744563342647,0.31122917,585.85,584.78,3.05400896]
[1744563342942,0.31122917,585.84,584.78,3.05400896]
[1744563343145,0.31122917,585.85,584.78,3.05400896]
[1744563346251,0.31118201,585.84,584.78,3.05400896]
[1744563346451,0.31118201,585.85,584.78,3.05400896]
[1744563347759,0.31119096,585.84,584.78,3.05400896]
[1744563347955,0.31119096,585.83,584.78,3.05400896]
[1744563348156,0.31119096,585.82,584.78,3.05400896]
[1744563348352,0.31119096,585.85,584.78,3.05400896]
[1744563348654,0.31119096,585.84,584.78,3.05400896]
[1744563348848,0.31119096,585.85,584.78,3.05400896]
[1744563349048,0.31119096,585.84,584.78,3.05400896]
[1744563349251,0.31119096,585.85,584.78,3.05400896]
[1744563349451,0.31119096,585.84,584.78,3.05400896]
[1744563349651,0.31119096,585.83,584.78,3.05400896]
[1744563349852,0.31119096,585.85,584.78,3.05400896]
[1744563351055,0.31119096,585.85,584.79,0.31408117]
[1744563351255,0.31119096,585.85,584.8,0.34199726]
[1744563352357,0.261,585.86,584.8,0.34199726]
[1744563352550,0.31118375,585.85,584.8,0.34199726]
[1744563354056,0.31118375,585.85,584.81,0.31408455]
[1744563354250,0.31118375,585.85,584.82,0.34198556]
[1744563356451,0.31118375,585.85,584.83,0.587]
[1744563356655,0.31118375,585.85,584.84,0.34197387]
[1744563358657,0.261,585.86,584.84,0.34197387]
[1744563358853,0.31118138,585.85,584.84,0.34197387]
[1744563360257,0.261,585.86,584.84,0.34197387]
[1744563360458,0.31118265,585.85,584.84,0.34197387]
[1744563360959,0.31118265,585.91,584.84,0.34197387]
[1744563361160,0.31118265,585.9,584.84,0.34197387]
[1744563361461,0.31118232,585.89,584.84,0.34197387]
[1744563361659,0.31118232,585.88,584.84,0.34197387]
[1744563361960,0.31118232,585.87,584.84,0.34197387]
[1744563362159,0.31118232,585.91,584.84,0.34197387]
[1744563362363,0.31118232,585.9,584.84,0.34197387]
[1744563362554,0.31118232,585.89,584.84,0.34197387]
[1744563362756,0.31118232,585.91,584.84,0.34197387]
[1744563362960,1.30550286,586.12,584.84,0.34197387]
[1744563363160,0.31117852,585.91,584.84,0.34197387]
[1744563364663,0.261,585.9,584.84,0.34197387]
[1744563364862,0.31117852,585.89,584.84,0.34197387]
[1744563365163,0.31117852,585.89,584.85,0.474]
[1744563365364,0.31117852,585.89,584.86,0.34196217]
[1744563366164,0.261,585.9,584.86,0.34196217]
[1744563366364,0.31116948,585.89,584.86,0.34196217]
[1744563368666,0.31116948,585.89,584.87,0.31406571]
[1744563368967,0.31116948,585.89,584.88,0.34195048]
[1744563369167,0.31116948,585.89,584.89,0.31406571]
[1744563369361,0.31116948,585.89,584.9,0.34193879]
[1744563370966,0.261,585.9,584.9,0.34193879]
[1744563371162,0.31114239,585.89,584.9,0.34193879]
[1744563374070,0.261,585.9,584.9,0.34193879]
[1744563374269,0.31112615,585.89,584.9,0.34193879]
[1744563374467,0.31112615,585.89,584.91,0.31402068]
[1744563374762,0.31112615,585.89,584.92,0.3419271]
[1744563374969,0.31112615,585.89,584.93,0.31402068]
[1744563375171,0.31112615,585.89,584.94,0.34191541]
[1744563375469,0.31112615,585.89,584.95,0.31402068]
[1744563375867,0.31112615,586.16,584.95,0.31402068]
[1744563376067,0.31112615,585.88,584.95,0.31402068]
[1744563376268,0.31112615,585.87,584.95,0.31402068]
[1744563376570,0.31112615,586.16,584.94,0.34191541]
[1744563376766,0.31108572,586.15,584.94,0.34191541]
[1744563377069,0.31108572,586.14,584.94,0.34191541]
[1744563377270,0.31108572,586.16,584.94,0.34191541]
[1744563377570,0.31108572,586.15,584.94,0.34191541]
[1744563377867,0.31108572,586.16,584.94,0.34191541]
[1744563378070,0.31108572,586.15,584.94,0.34191541]
[1744563378271,2.22116807,586.66,584.94,0.34191541]
[1744563378272,0.31108572,586.16,584.94,0.34191541]
[1744563378465,0.31108572,586.44,584.94,0.34191541]
[1744563378667,0.65213239,586.43,584.94,0.34191541]
[1744563378866,0.6521382,586.42,584.94,0.34191541]
[1744563379071,0.65214402,586.41,584.94,0.34191541]
[1744563379268,0.65214984,586.4,584.94,0.34191541]
[1744563379468,0.65215565,586.39,584.94,0.34191541]
[1744563379672,0.65216147,586.38,584.94,0.34191541]
[1744563379874,0.65216728,586.37,584.94,0.34191541]
[1744563380074,0.6521731,586.36,584.94,0.34191541]
[1744563380274,0.65217892,586.35,584.94,0.34191541]
[1744563380476,0.31108572,586.34,584.94,0.34191541]
[1744563380676,0.34110483,586.33,584.94,0.34191541]
[1744563380876,0.31108572,586.32,584.95,0.57]
[1744563381176,0.65219637,586.32,584.96,0.34190371]
[1744563381376,0.31108572,586.31,584.96,0.34190371]
[1744563382079,0.34111065,586.32,584.96,0.34190371]
[1744563382273,0.31108592,586.31,584.96,0.34190371]
[1744563382673,0.60831604,586.31,584.96,0.34190371]
[1744563382876,0.31108592,586.3,584.96,0.34190371]
[1744563383073,0.31108592,586.29,584.96,0.34190371]
[1744563383281,0.31108592,586.28,584.96,0.34190371]
[1744563383478,0.31108592,586.27,584.96,0.34190371]
[1744563383673,0.29723012,586.31,584.96,0.34190371]
[1744563383875,0.31108581,586.3,584.97,0.658]
[1744563384074,0.31108581,586.29,584.98,0.34189203]
[1744563384379,0.31108581,586.28,584.99,0.31398711]
[1744563384679,0.31108581,586.27,585.0,0.34188034]
[1744563384879,0.31108581,586.26,585.0,0.34188034]
[1744563385280,0.34111065,586.32,585.0,0.34188034]
[1744563385281,0.31108581,586.25,585.01,0.3139872]
[1744563385480,0.31108581,586.24,585.02,0.34186865]
[1744563385681,0.31108581,586.23,585.03,0.31398414]
[1744563385980,0.31108581,586.22,585.04,0.34185696]
[1744563386180,0.31108581,586.24,585.04,0.34185696]
[1744563386380,0.31108581,586.23,585.04,0.34185696]
[1744563386582,0.31108581,586.24,585.04,0.34185696]
[1744563386781,0.2972352,586.25,585.04,0.34185696]
[1744563386981,0.31107802,586.24,585.04,0.34185696]
[1744563387583,0.31107802,586.23,585.04,0.34185696]